bitfinex/quotes_SOLUSD_20260224
["timestamp","ask_amount","ask_price","bid_price","bid_amount"]
[1771927314428,13.03627996,76.709,76.676,0.51588455]
[1771927314845,13.03458074,76.719,76.676,0.51588455]
[1771927315045,5.22857934,76.71,76.676,0.51588455]
[1771927316355,13.03627996,76.709,76.678,0.51588455]
[1771927316647,5.22857934,76.71,76.678,0.51588455]
[1771927317226,18.26471171,76.71,76.678,0.51588455]
[1771927318645,5.22857934,76.7,76.68,0.51588455]
[1771927319444,5.22857934,76.69,76.669,0.51588455]
[1771927319637,5.22857934,76.69,76.669,13.55892676]
[1771927320152,5.22857934,76.69,76.669,13.04304221]
[1771927320352,5.22857934,76.69,76.665,13.04360009]
[1771927320832,5.22857934,76.69,76.678,0.2]
[1771927321033,13.03967974,76.689,76.678,0.2]
[1771927321363,13.03967974,76.689,76.653,0.51588455]
[1771927321364,45.6388791,76.689,76.653,0.51588455]
[1771927321645,5.22857934,76.68,76.653,0.51588455]
[1771927322037,13.03967974,76.689,76.653,0.51588455]
[1771927322355,5.22857934,76.68,76.653,0.51588455]
[1771927322538,5.22857934,76.7,76.666,0.51588455]
[1771927322737,5.22857934,76.7,76.679,13.04122904]
[1771927323442,18.26655582,76.7,76.679,13.04122904]
[1771927323644,5.22857934,76.7,76.679,13.04122904]
[1771927324334,5.22857934,76.7,76.68,0.51588455]
[1771927324767,5.22857934,76.71,76.684,0.28432314]
[1771927324939,5.22857934,76.72,76.685,0.51588455]
[1771927326245,5.22857934,76.71,76.685,0.51588455]
[1771927328158,5.22857934,76.71,76.687,0.51588455]
[1771927328949,5.42857934,76.71,76.687,0.51588455]
[1771927329151,0.2,76.72,76.692,0.28432314]
[1771927329461,5.42857934,76.72,76.696,0.49379903]
[1771927329835,5.42857934,76.72,76.694,0.49379903]
[1771927330043,0.46716825,76.735,76.697,0.49379903]
[1771927330247,5.22857934,76.72,76.697,0.49379903]
[1771927331764,5.22857934,76.72,76.699,0.49379903]
[1771927334967,5.22857934,76.72,76.701,0.49379903]
[1771927335863,5.22857934,76.72,76.71,0.49379903]
[1771927336867,5.22857934,76.72,76.719,0.2]
[1771927337168,5.69574759,76.73,76.719,0.2]
[1771927337371,0.46716825,76.729,76.719,0.2]
[1771927339069,5.22857934,76.73,76.717,0.49379903]
[1771927339769,3.69383402,76.761,76.717,0.49379903]
[1771927339770,5.22857934,76.74,76.717,0.49379903]
[1771927343282,5.22608883,76.74,76.718,45.62162725]
[1771927343583,5.22608883,76.74,76.719,0.47077445]
[1771927344455,5.22608883,76.74,76.72,45.62043795]
[1771927344674,5.22608883,76.74,76.721,0.47077445]
[1771927344867,0.48597411,76.739,76.72,32.58602711]
[1771927345079,0.46236938,76.752,76.72,32.58602711]
[1771927345259,0.46236938,76.751,76.72,32.58602711]
[1771927345458,13.02881701,76.753,76.72,32.58602711]
[1771927345669,5.22608883,76.73,76.72,32.58602711]
[1771927346054,13.02778827,76.759,76.72,32.58602711]
[1771927346462,13.02778827,76.759,76.72,45.62043795]
[1771927346664,5.22608883,76.73,76.72,46.08305017]
[1771927346869,5.22608883,76.73,76.708,0.28432314]
[1771927347382,0.33323013,76.738,76.708,0.28432314]
[1771927347877,5.22608883,76.73,76.708,0.28432314]
[1771927348080,5.22608883,76.73,76.708,45.91189783]
[1771927348280,0.33323013,76.738,76.708,45.91189783]
[1771927348478,5.22608883,76.73,76.708,45.62757469]
[1771927348661,5.22608883,76.72,76.708,45.62757469]
[1771927349363,44.93420928,76.753,76.708,45.62757469]
[1771927349571,44.93420928,76.753,76.708,46.09018691]
[1771927349572,13.02897644,76.752,76.708,46.09018691]
[1771927349772,5.22608883,76.72,76.708,46.09018691]
[1771927350259,13.02897644,76.752,76.708,46.09018691]
[1771927350459,0.46229689,76.751,76.708,46.09018691]
[1771927350671,5.22608883,76.72,76.708,46.09018691]
[1771927350877,0.46229689,76.729,76.708,46.09018691]
[1771927351557,5.22608883,76.72,76.708,46.09018691]
[1771927352481,0.46229689,76.729,76.708,46.09018691]
[1771927352670,5.22608883,76.72,76.708,46.09018691]
[1771927352869,0.46229689,76.729,76.708,46.09018691]
[1771927353081,5.22608883,76.72,76.708,46.09018691]
[1771927353280,0.46229689,76.729,76.708,46.09018691]
[1771927353583,5.22608883,76.72,76.709,0.46261222]
[1771927353965,0.46206978,76.725,76.709,0.46261222]
[1771927354165,5.22608883,76.72,76.709,0.46261222]
[1771927354366,0.46206978,76.725,76.709,0.46261222]
[1771927354973,5.22608883,76.72,76.709,0.46261222]
[1771927355291,0.46199581,76.73,76.711,0.46261222]
[1771927355464,5.68808464,76.73,76.711,0.46261222]
[1771927357682,0.46177896,76.719,76.696,0.46261222]
[1771927358380,5.22608883,76.72,76.696,0.46261222]
[1771927359483,5.22608883,76.72,76.697,45.63411867]
[1771927359686,5.22608883,76.72,76.698,0.46261222]
[1771927360489,5.22608883,76.72,76.699,45.63292871]
[1771927360688,5.22608883,76.72,76.7,0.46261222]
[1771927363988,5.22608883,76.72,76.702,0.46261222]
[1771927366682,5.22608883,76.72,76.704,0.46261222]
[1771927370972,5.22608883,76.72,76.706,0.46261222]
[1771927371698,5.22608883,76.73,76.707,0.46261222]
[1771927372298,5.6869495,76.73,76.707,0.46261222]
[1771927372795,5.68688942,76.73,76.709,0.46261222]
[1771927373388,5.22608883,76.73,76.709,0.46261222]
[1771927373695,0.46236938,76.719,76.708,10.71719502]
[1771927374479,0.46236938,76.719,76.678,9.33901904]
[1771927374791,0.46236938,76.714,76.681,0.28432314]
[1771927375470,0.46236938,76.714,76.683,0.28432314]
[1771927375681,0.46236938,76.714,76.694,0.49990289]
[1771927379899,0.46236938,76.714,76.687,0.28432314]
[1771927379900,0.46236938,76.714,76.696,0.49990289]
[1771927380287,5.68434712,76.71,76.696,0.49990289]
[1771927380588,0.45825829,76.709,76.687,32.5998819]
[1771927380795,0.45825829,76.699,76.687,32.5998819]
[1771927381295,0.45825829,76.699,76.65,0.2]
[1771927381480,5.22608883,76.72,76.65,0.2]
[1771927381481,0.45825829,76.669,76.65,0.2]
[1771927381677,0.04568299,76.669,76.653,13.04580381]
[1771927382591,5.22608883,76.69,76.655,0.49990289]
[1771927383580,5.68434712,76.69,76.655,0.49990289]
[1771927383795,0.45825829,76.689,76.657,0.49990289]
[1771927384385,13.49793803,76.689,76.657,0.49990289]
[1771927384697,0.45825829,76.688,76.657,0.49990289]
[1771927386103,5.22608883,76.68,76.659,0.49990289]
[1771927386401,5.68434712,76.68,76.659,0.49990289]
[1771927388401,5.68434712,76.68,76.66,13.04461257]
[1771927388602,5.68434712,76.68,76.661,0.49990289]
[1771927390903,5.68434712,76.68,76.662,13.04427226]
[1771927391108,5.68434712,76.68,76.663,0.49990289]
[1771927391409,0.45825829,76.689,76.663,0.49990289]
[1771927391606,5.22608883,76.68,76.663,0.49990289]
[1771927394408,5.22608883,76.68,76.664,13.04393196]
[1771927394594,5.22608883,76.68,76.664,13.54383485]
[1771927396196,5.22608883,76.68,76.665,0.49990289]
[1771927397285,0.45825829,76.679,76.655,0.49990289]
[1771927397488,5.22608883,76.67,76.655,0.49990289]
[1771927398415,0.45825829,76.669,76.65,0.2]
[1771927398613,5.68434712,76.66,76.65,0.2]
[1771927399418,5.22608883,76.67,76.651,13.04614421]
[1771927400314,5.22608883,76.67,76.652,0.49990289]
[1771927401008,5.22608883,76.67,76.654,0.49990289]
[1771927401521,5.3243167,76.67,76.654,0.49990289]
[1771927401813,5.22608883,76.67,76.654,0.49990289]
[1771927402916,5.22608883,76.67,76.656,0.49990289]
[1771927405317,5.23548033,76.67,76.657,13.04512308]
[1771927405527,5.23548033,76.67,76.657,13.53988817]
[1771927405818,5.23548033,76.67,76.658,0.49476509]
[1771927408153,5.23548033,76.67,76.653,0.49476509]
[1771927411754,5.23548033,76.68,76.656,0.49476509]
[1771927412252,5.33252051,76.69,76.656,0.49476509]
[1771927412450,5.23548033,76.7,76.664,0.49476509]
[1771927412657,5.33242877,76.7,76.664,0.49476509]
[1771927414444,5.23548033,76.69,76.665,45.65316637]
[1771927414650,5.23548033,76.69,76.666,0.49476509]
[1771927416354,5.23548033,76.69,76.668,0.49476509]
[1771927418250,5.23548033,76.69,76.675,0.49476509]
[1771927418454,0.0967681,76.695,76.675,0.49476509]
[1771927420543,5.23548033,76.69,76.676,13.04189055]
[1771927420857,5.23548033,76.69,76.676,13.53665564]
[1771927421041,5.23548033,76.69,76.677,0.49476509]
[1771927422361,13.03781333,76.7,76.677,0.49476509]
[1771927422362,5.23548033,76.7,76.677,0.49476509]
[1771927422552,5.23548033,76.7,76.676,13.04189055]
[1771927422553,0.09608702,76.708,76.679,0.49476509]
[1771927423862,0.09600623,76.699,76.678,45.64542631]
[1771927424065,0.09600623,76.699,76.685,0.2]
[1771927424246,0.09600623,76.699,76.685,0.10399377]
[1771927424954,0.09600623,76.699,76.695,0.2]
[1771927425144,0.09600623,76.699,76.69,13.03946304]
[1771927425464,5.23548033,76.7,76.69,13.03946304]
[1771927427543,5.23548033,76.7,76.687,13.0399867]
[1771927430172,5.23548033,76.7,76.69,0.2]
[1771927431063,13.03613581,76.71,76.69,0.2]
[1771927431262,5.23548033,76.7,76.69,0.2]
[1771927431951,5.03548033,76.7,76.69,0.2]
[1771927435876,5.03548033,76.7,76.691,13.03933968]
[1771927436073,52.19729866,76.78,76.692,0.50347666]
[1771927436282,5.23548033,76.71,76.692,0.50347666]
[1771927437758,5.23548033,76.71,76.7,0.2]
[1771927439065,5.23548033,76.71,76.701,0.50347666]
[1771927439261,5.23548033,76.72,76.702,0.48054862]
[1771927440184,5.23548033,76.72,76.703,0.48054862]
[1771927440584,5.23548033,76.71,76.703,0.48054862]
[1771927441387,5.23548033,76.71,76.701,13.03763966]
[1771927442284,0.45588257,76.709,76.693,32.59749911]
[1771927442590,5.23548033,76.7,76.69,0.4]
[1771927442768,5.6913629,76.7,76.69,0.4]
[1771927442962,5.6913629,76.7,76.673,0.2]
[1771927442963,0.45588257,76.699,76.673,0.2]
[1771927444283,0.45588257,76.699,76.68,32.60293478]
[1771927444284,0.25588257,76.699,76.68,32.60293478]
[1771927445186,0.05588257,76.699,76.68,32.60293478]
[1771927445891,13.03579466,76.712,76.68,32.60293478]
[1771927446075,5.23548033,76.7,76.68,32.60293478]
[1771927446788,5.23548033,76.7,76.686,0.48054862]
[1771927447895,5.23548033,76.7,76.688,0.48054862]
[1771927449287,5.23548033,76.7,76.687,13.04001982]
[1771927450780,5.36170138,76.7,76.684,13.04052996]
[1771927450981,5.36170138,76.7,76.688,0.2]
[1771927451783,5.36170138,76.7,76.698,0.2]
[1771927452083,0.12622105,76.7,76.698,0.2]
[1771927452393,0.12616326,76.709,76.698,0.2]
[1771927457899,0.12616326,76.709,76.698,0.4]
[1771927458595,0.12616326,76.709,76.688,0.2]
[1771927458596,0.12577687,76.708,76.688,0.07422313]
[1771927458901,5.23548033,76.7,76.662,13.04425607]
[1771927459088,5.23548033,76.68,76.659,13.54706107]
[1771927459286,10.47096066,76.68,76.659,0.50229374]
[1771927459681,5.03548033,76.67,76.659,0.50229374]
[1771927460401,5.03548033,76.67,76.658,13.04480397]
[1771927460999,5.03548033,76.67,76.661,13.04441269]
[1771927461213,5.23548033,76.67,76.665,0.50229374]
[1771927461501,5.23548033,76.68,76.665,0.50229374]
[1771927463404,5.23548033,76.68,76.66,13.54678969]
[1771927463609,5.23548033,76.67,76.66,13.54678969]
[1771927464801,5.23548033,76.67,76.663,0.4]
[1771927465701,5.03548033,76.67,76.663,0.4]
[1771927466500,0.28432314,76.703,76.663,0.4]
[1771927466704,5.23548033,76.67,76.663,0.4]
[1771927467303,5.23589946,76.67,76.663,0.4]
[1771927468509,5.23589946,76.67,76.663,0.90229374]
[1771927468916,5.23589946,76.67,76.665,0.50229374]
[1771927469208,5.23589946,76.68,76.665,0.50229374]
[1771927472711,5.23589946,76.68,76.673,0.2]
[1771927473411,5.23589946,76.68,76.665,0.50229374]
[1771927478502,5.23589946,76.68,76.666,0.50229374]
[1771927479428,5.23589946,76.68,76.675,0.2]
[1771927480118,5.23589946,76.68,76.67,0.50229374]
[1771927480326,10.27179892,76.68,76.663,0.6]
[1771927480622,5.23589946,76.67,76.657,13.04495971]
[1771927482618,0.48225935,76.669,76.624,0.28432314]
[1771927482919,0.48225935,76.669,76.625,32.6264274]
[1771927482920,5.23589946,76.65,76.625,32.6264274]
[1771927484720,5.23589946,76.65,76.628,0.47288747]
[1771927486014,0.48225935,76.659,76.628,0.47288747]
[1771927486215,0.48225935,76.659,76.627,45.67580617]
[1771927486421,0.48225935,76.659,76.629,0.47288747]
[1771927486623,0.48225935,76.659,76.63,0.47288747]
[1771927487026,5.23589946,76.64,76.63,0.47288747]
[1771927487428,0.48225935,76.657,76.632,0.47288747]
[1771927487615,5.23589946,76.64,76.632,0.47288747]
[1771927488305,0.48225935,76.657,76.633,0.47288747]
[1771927488523,0.48225935,76.657,76.632,0.47288747]
[1771927488829,5.23589946,76.64,76.631,0.47288747]
[1771927489228,0.48225935,76.657,76.632,0.47288747]
[1771927489428,5.23589946,76.64,76.634,0.47288747]
[1771927489737,5.23589946,76.64,76.633,13.04920856]
[1771927489738,0.48225935,76.657,76.635,0.47288747]
[1771927489911,5.23589946,76.65,76.635,0.47288747]
[1771927491628,5.23589946,76.65,76.637,0.47288747]
[1771927495236,5.23589946,76.65,76.639,0.49933303]
[1771927500937,0.46043137,76.677,76.64,0.49933303]
[1771927501138,0.46043137,76.679,76.636,0.49933303]
[1771927501434,0.50094702,76.659,76.623,0.14216157]
[1771927501640,5.23589946,76.65,76.623,0.14216157]
[1771927501841,5.73684648,76.66,76.623,0.14216157]
[1771927502036,0.50094702,76.665,76.622,0.14216157]
[1771927502238,5.23589946,76.68,76.622,0.14216157]
[1771927502239,0.50094702,76.67,76.622,5.50302345]
[1771927502639,5.23589946,76.66,76.622,5.50302345]
[1771927502842,0.50094702,76.678,76.629,3.69383402]
[1771927503045,0.50094702,76.669,76.632,0.14216157]
[1771927503240,0.50094702,76.659,76.622,0.14216157]
[1771927505734,5.23589946,76.64,76.621,45.67938292]
[1771927506054,0.50094702,76.644,76.622,0.28432314]
[1771927512866,0.50094702,76.644,76.624,0.28432314]
[1771927517946,5.23589946,76.65,76.626,0.49905298]
[1771927519965,5.69846842,76.65,76.627,45.67580617]
[1771927520266,0.46043137,76.649,76.628,0.49905298]
[1771927526163,0.46043137,76.649,76.63,0.47411653]
[1771927529368,0.46043137,76.649,76.631,13.52366566]
[1771927531470,0.46043137,76.649,76.632,0.47411653]
[1771927533570,0.46043137,76.649,76.633,13.04920856]
[1771927535474,0.46516717,76.639,76.61,0.1]
[1771927535678,0.46516717,76.619,76.61,0.1]
[1771927535972,0.46516717,76.619,76.6,0.1]
[1771927536173,13.04835721,76.638,76.6,0.1]
[1771927536174,0.46516717,76.609,76.6,0.1]
[1771927536583,0.46516717,76.609,76.586,13.0570502]
[1771927536765,5.2384549,76.6,76.582,13.05788643]
[1771927537077,5.2384549,76.6,76.582,0.5]
[1771927537772,5.2384549,76.6,76.587,13.05688425]
[1771927537979,5.2384549,76.61,76.59,0.7]
[1771927539773,5.2384549,76.62,76.592,0.5]
[1771927540070,5.2384549,76.62,76.594,0.5]
[1771927540262,5.2384549,76.62,76.596,0.5]
[1771927541969,5.2384549,76.62,76.598,0.5]
[1771927542476,5.2384549,76.63,76.598,0.5]
[1771927548988,5.2384549,76.62,76.599,13.05500071]
[1771927549187,5.2384549,76.62,76.6,0.5]
[1771927550084,5.2384549,76.63,76.6,0.5]
[1771927550997,18.28654705,76.64,76.606,0.5]
[1771927551878,5.2384549,76.66,76.625,0.5]
[1771927552082,13.04018986,76.686,76.632,0.14216157]
[1771927552285,13.04018986,76.686,76.646,0.5]
[1771927553299,5.2384549,76.67,76.648,0.5]
[1771927554495,5.2384549,76.67,76.647,13.04682505]
[1771927554989,5.2384549,76.68,76.648,0.5]
[1771927555195,5.2384549,76.68,76.65,0.5]
[1771927556685,32.59783635,76.693,76.652,0.5]
[1771927556878,5.2384549,76.69,76.652,0.5]
[1771927557294,5.2384549,76.67,76.642,0.5]
[1771927561098,13.04308129,76.669,76.643,13.04750596]
[1771927561297,5.2384549,76.66,76.637,13.54840729]
[1771927561800,5.2384549,76.66,76.637,13.04840729]
[1771927561983,5.2384549,76.68,76.646,0.5]
[1771927562793,5.2384549,76.66,76.638,0.5]
[1771927563001,5.2384549,76.67,76.638,0.5]
[1771927563803,13.04308129,76.669,76.64,0.5]
[1771927563993,5.2384549,76.66,76.64,0.5]
[1771927564788,5.2384549,76.66,76.635,0.5]
[1771927566110,45.65673957,76.659,76.626,13.05040064]
[1771927566291,5.2384549,76.64,76.618,0.5]
[1771927566485,5.2384549,76.64,76.619,13.05159294]
[1771927566803,45.65673957,76.659,76.596,0.5]
[1771927566804,5.2384549,76.63,76.596,0.5]
[1771927566984,5.2384549,76.64,76.596,0.5]
[1771927567183,5.2384549,76.63,76.596,0.5]
[1771927569006,5.2384549,76.63,76.598,0.5]
[1771927569210,13.04988972,76.629,76.598,0.5]
[1771927570509,5.2384549,76.63,76.598,0.5]
[1771927571697,5.2384549,76.63,76.597,45.69369557]
[1771927571698,5.2384549,76.63,76.599,13.05500071]
[1771927571898,5.2384549,76.63,76.6,0.5]
[1771927572815,18.28819667,76.63,76.602,0.5]
[1771927573411,5.2384549,76.64,76.602,0.5]
[1771927574614,13.04831489,76.639,76.604,0.5]
[1771927574809,13.04831489,76.639,76.603,13.05431902]
[1771927574810,5.2384549,76.66,76.622,0.5]
[1771927574992,13.04189055,76.676,76.626,0.5]
[1771927574993,5.2384549,76.67,76.626,0.5]
[1771927575399,5.2384549,76.66,76.626,0.5]
[1771927576200,5.2384549,76.67,76.631,0.5]
[1771927576811,13.04308129,76.669,76.633,0.5]
[1771927579119,13.04308129,76.669,76.627,32.62557143]
[1771927579120,5.2384549,76.66,76.635,0.5]
[1771927580815,5.2384549,76.66,76.637,0.5]
[1771927581117,5.2384549,76.68,76.637,0.5]
[1771927581118,13.04271945,76.672,76.637,0.5]
[1771927581304,13.04138029,76.679,76.641,0.5]
[1771927582904,13.0408675,76.683,76.651,0.5]
[1771927585329,13.03967974,76.689,76.653,0.5]
[1771927587417,13.03907325,76.693,76.657,0.5]
[1771927587618,13.03907325,76.693,76.661,0.5]
[1771927590235,13.03797963,76.699,76.663,0.5]
[1771927592032,5.23276657,76.68,76.662,13.04427226]
[1771927592332,13.04138029,76.679,76.649,0.5]
[1771927594732,5.23276657,76.69,76.651,0.5]
[1771927597531,13.03967974,76.689,76.652,13.04597401]
[1771927597837,13.03967974,76.689,76.653,0.5]
[1771927598533,45.6388791,76.689,76.653,0.5]
[1771927599323,45.6388791,76.689,76.655,0.5]
[1771927603443,0.28432314,76.704,76.657,0.5]
[1771927603622,5.23276657,76.69,76.657,0.5]
[1771927610951,13.03967974,76.689,76.658,13.0449529]
[1771927611150,13.03967974,76.689,76.659,0.5]
[1771927615253,5.23276657,76.68,76.658,13.0449529]
[1771927616137,5.23276657,76.67,76.652,0.5]
[1771927616636,45.6388791,76.689,76.652,0.5]
[1771927616841,5.23276657,76.68,76.652,0.5]
[1771927617537,13.04138029,76.679,76.652,0.5]
[1771927617851,32.59611065,76.697,76.654,0.5]
[1771927618055,5.23276657,76.69,76.654,0.5]
[1771927619557,5.23276657,76.69,76.656,0.5]
[1771927620052,5.23276657,76.7,76.656,0.5]
[1771927621156,5.23276657,76.7,76.661,0.5]
[1771927621740,5.23276657,76.7,76.655,45.65912204]
[1771927621741,13.03797963,76.699,76.663,0.5]
[1771927623264,45.63292871,76.699,76.663,0.5]
[1771927624566,45.63292871,76.699,76.665,0.5]
[1771927625768,45.63292871,76.699,76.667,0.5]
[1771927628368,45.63292871,76.699,76.669,0.5]
[1771927629262,5.23276657,76.69,76.669,0.5]
[1771927629456,5.23276657,76.69,76.664,0.5]
[1771927630666,13.03967974,76.689,76.664,0.5]
[1771927631772,13.03967974,76.689,76.66,0.5]
[1771927631969,13.03967974,76.689,76.654,0.5]
[1771927631970,5.23276657,76.68,76.654,0.5]
[1771927634853,3.69383402,76.697,76.654,0.5]
[1771927635058,5.23276657,76.69,76.656,0.5]
[1771927636064,5.23276657,76.68,76.656,0.5]
[1771927638673,13.04138029,76.679,76.656,0.5]
[1771927650286,5.23276657,76.67,76.645,0.5]
[1771927650474,5.23276657,76.66,76.636,13.54869773]
[1771927650679,5.23276657,76.66,76.637,0.5]
[1771927650879,18.27924841,76.65,76.628,0.5]
[1771927651274,18.28579188,76.65,76.628,0.5]
[1771927651471,5.23931004,76.64,76.61,0.5]
[1771927651671,5.23931004,76.63,76.61,0.5]
[1771927652683,0.48088963,76.629,76.601,13.05452803]
[1771927652865,0.48088963,76.627,76.591,13.05636432]
[1771927653792,5.72019967,76.62,76.591,13.05636432]
[1771927653979,0.48088963,76.619,76.591,13.05636432]
[1771927654591,0.48088963,76.619,76.592,0.48554928]
[1771927655294,0.48088963,76.619,76.594,0.48554928]
[1771927655488,0.48088963,76.623,76.594,0.48554928]
[1771927657685,0.48088963,76.623,76.596,0.48554928]
[1771927658296,0.48088963,76.619,76.595,0.48554928]
[1771927658794,0.48088963,76.624,76.595,0.48554928]
[1771927658987,0.48088963,76.633,76.597,0.48554928]
[1771927659397,0.48088963,76.631,76.597,0.48554928]
[1771927659898,0.48088963,76.629,76.599,0.48554928]
[1771927662398,0.48088963,76.629,76.601,0.48554928]
[1771927662599,3.69383402,76.651,76.59,5.43931004]
[1771927662600,5.23931004,76.62,76.595,0.48554928]
[1771927662779,0.48088963,76.619,76.595,0.48554928]
[1771927663617,0.48088963,76.627,76.597,0.48554928]
[1771927664403,5.23931004,76.63,76.597,0.48554928]
[1771927664404,0.48088963,76.619,76.597,0.48554928]
[1771927665104,0.48088963,76.609,76.59,0.2]
[1771927665901,0.48088963,76.609,76.59,0.68554928]
[1771927666105,0.48088963,76.609,76.591,0.48554928]
[1771927667904,0.48088963,76.607,76.591,0.48554928]
[1771927668808,0.48088963,76.607,76.591,13.54191334]
[1771927669406,0.48088963,76.607,76.591,0.48554928]
[1771927675125,0.47201511,76.605,76.59,0.2]
[1771927675325,0.47201511,76.599,76.58,0.1]
[1771927675621,0.47201511,76.599,76.58,0.5871565]
[1771927677323,0.3,76.597,76.58,0.1]
[1771927678327,0.3,76.597,76.58,0.5871565]
[1771927678629,0.3,76.589,76.58,0.1]
[1771927680409,0.3,76.587,76.56,0.1]
[1771927680617,0.1,76.599,76.561,0.4871565]
[1771927681129,5.23931004,76.6,76.561,0.4871565]
[1771927681130,5.23931004,76.58,76.561,0.4871565]
[1771927681429,0.47201511,76.579,76.55,0.1]
[1771927682023,5.23931004,76.57,76.54,0.1]
[1771927682216,0.47201511,76.582,76.541,13.06489332]
[1771927682414,45.69846844,76.589,76.541,45.72712663]
[1771927682415,0.47201511,76.579,76.541,45.72712663]
[1771927683213,0.47201511,76.579,76.541,13.06489332]
[1771927683415,0.47201511,76.577,76.544,0.4871565]
[1771927685235,0.47201511,76.577,76.543,13.06455195]
[1771927685236,13.05721672,76.586,76.551,0.4871565]
[1771927685416,13.05721672,76.586,76.553,0.4871565]
[1771927685821,0.47201511,76.588,76.553,0.4871565]
[1771927686418,5.23931004,76.58,76.553,0.4871565]
[1771927686920,0.47201511,76.579,76.553,0.4871565]
[1771927690123,0.47201511,76.577,76.553,0.4871565]
[1771927692311,0.47201511,76.575,76.553,0.4871565]
[1771927692629,0.47201511,76.569,76.54,0.5871565]
[1771927692829,0.47201511,76.559,76.54,0.5871565]
[1771927693734,0.47201511,76.569,76.54,0.5871565]
[1771927693922,0.47201511,76.574,76.542,0.4871565]
[1771927695429,13.53144859,76.573,76.544,0.4871565]
[1771927695636,0.47201511,76.585,76.551,0.4871565]
[1771927697938,0.47201511,76.585,76.543,45.72593182]
[1771927697939,13.05747155,76.585,76.561,0.4871565]
[1771927698145,13.05585293,76.594,76.561,0.4871565]
[1771927699142,13.05498463,76.6,76.571,0.4871565]
[1771927699543,0.47201511,76.609,76.571,0.4871565]
[1771927699741,13.52531172,76.609,76.571,0.4871565]
[1771927700048,5.23931004,76.62,76.57,5.23931004]
[1771927700049,0.47201511,76.608,76.573,0.4871565]
[1771927700849,0.47201511,76.618,76.581,0.4871565]
[1771927706149,0.49561955,76.616,76.583,0.48571573]
[1771927706659,0.49561955,76.619,76.583,0.48571573]
[1771927708050,0.49561955,76.631,76.59,5.23931004]
[1771927708249,0.49561955,76.629,76.591,0.48571573]
[1771927709367,0.49561955,76.627,76.593,0.48571573]
[1771927713367,0.49561955,76.625,76.595,0.48571573]
[1771927715063,0.49561955,76.625,76.594,45.69548527]
[1771927715064,0.49561955,76.631,76.601,0.48571573]
[1771927715270,13.54414702,76.637,76.611,0.48571573]
[1771927715872,13.04805488,76.64,76.613,0.48571573]
[1771927716364,3.69383402,76.645,76.613,0.48571573]
[1771927716667,0.49561955,76.65,76.621,0.48571573]
[1771927717748,13.04648462,76.649,76.622,13.05108193]
[1771927717949,13.04648462,76.649,76.623,0.48571573]
[1771927718956,5.24219589,76.66,76.596,0.28432314]
[1771927718957,5.24219589,76.66,76.625,0.48571573]
[1771927719156,0.49561955,76.658,76.625,0.48571573]
[1771927721170,0.49561955,76.656,76.627,0.48571573]
[1771927722271,0.49561955,76.654,76.629,0.48571573]
[1771927724768,0.49561955,76.654,76.631,0.48571573]
[1771927725757,0.49561955,76.654,76.6,5.24219589]
[1771927725758,0.49561955,76.649,76.603,0.28432314]
[1771927725957,0.49561955,76.639,76.606,0.48571573]
[1771927726151,0.49561955,76.639,76.61,5.24219589]
[1771927726351,0.49561955,76.644,76.611,0.48571573]
[1771927727160,0.49561955,76.654,76.621,0.48571573]
[1771927729074,13.04514309,76.657,76.62,5.24219589]
[1771927729075,13.04562834,76.655,76.622,13.05108193]
[1771927729277,5.24219589,76.67,76.631,0.48571573]
[1771927729462,5.73781544,76.67,76.631,0.48571573]
[1771927729659,0.49561955,76.675,76.641,0.48571573]
[1771927730676,5.24219589,76.68,76.641,0.48571573]
[1771927730879,13.04067925,76.684,76.651,0.48571573]
[1771927731379,13.5362988,76.684,76.653,0.48571573]
[1771927731564,0.49561955,76.683,76.653,0.48571573]
[1771927734787,0.49561955,76.683,76.655,0.48571573]
[1771927734964,13.04087008,76.682,76.655,0.48571573]
[1771927735159,13.50618712,76.682,76.655,0.48571573]
[1771927735466,0.46531704,76.681,76.655,0.48571573]
[1771927735784,0.46531704,76.679,76.655,0.48571573]
[1771927736667,0.46531704,76.684,76.655,0.48571573]
[1771927736872,13.50585649,76.684,76.657,0.49873211]
[1771927737068,0.46531704,76.683,76.657,0.49873211]
[1771927738587,0.46531704,76.681,76.659,0.49873211]
[1771927740888,0.46531704,76.681,76.661,0.49873211]
[1771927741687,13.04121022,76.68,76.661,0.49873211]
[1771927742084,0.46531704,76.68,76.661,0.49873211]
[1771927744799,0.46531704,76.679,76.661,0.49873211]
[1771927747396,0.46531704,76.683,76.663,0.49873211]
[1771927748774,13.04087008,76.682,76.663,0.49873211]
[1771927748979,13.50618712,76.682,76.663,0.49873211]
[1771927749493,0.46531704,76.681,76.663,0.49873211]
[1771927752198,0.2,76.69,76.663,0.49873211]
[1771927753583,0.2,76.7,76.671,0.49873211]